Cogmind - Beta 13 X1 @@@ ROGUE MODE // 2023.12.16 @ 12:38:28 Player: f3-rnm Result: Destroyed by 8C-00P(R) with Subdweller Machine Gun Performance ------------- Evolutions (0) 0 Regions Visited (2) 400 Robots Destroyed (21) 105 Value Destroyed (638) 638 Prototype IDs (0) 0 Alien Tech Used (0) 0 Bonus (0) 0 TOTAL SCORE: 1143 Bonus ------- None Cogmind --------- Core Integrity 0/250 Matter 206/300 Energy 155/250 System Corruption 0% Temperature Cool (0) Movement Treading (160) Location -10/Subcaves Parts ------- > --- POWER (1) -------- Ion Engine > --- PROPULSION (2) --- Light Treads Light Treads > --- UTILITY (2) ------ Large Storage Unit Light Armor Plating > --- WEAPON (2) ------- Light Cannon Battle Cannon > --- INVENTORY (15) --- Wheel Heat Sink Improved Heat Sink Large Storage Unit High-capacity Matter Pod (200) Structural Scanner Seismic Detector EM Pulse Gun Assault Rifle Hammer Peak State ------------ > --- POWER ------------ Ion Engine > --- PROPULSION ------- Light Treads Light Treads > --- UTILITY ---------- Large Storage Unit Light Armor Plating > --- WEAPON ----------- Light Cannon Battle Cannon > --- INVENTORY -------- Ion Engine Light Treads Wheel Heat Sink Improved Heat Sink Large Storage Unit High-capacity Matter Pod Structural Scanner Seismic Detector EM Pulse Gun Assault Rifle Hammer [Rating: 9] Favorites ----------- Power Ion Engine Engine Ion Engine Propulsion Light Treads Treads Light Treads Utility Large Storage Unit Storage Large Storage Unit Protection Propulsion Shielding Weapon Medium Laser Energy Gun Medium Laser Ballistic Gun Light Assault Rifle Ballistic Cannon Battle Cannon Build | -11 -10 -10 ------- Run | Jun Mat Sub Slots Evolved . | . . . Power . | . . . Propulsion . | . . . Utility . | . . . Weapon . | . . . Parts Attached 16 | 7 3 6 Power 3 | 1 1 1 Engine 3 | 1 1 1 Core . | . . . Reactor . | . . . Propulsion 4 | 2 . 2 Treads 4 | 2 . 2 Leg . | . . . Wheel . | . . . Hover . | . . . Flight . | . . . Utility 4 | 1 2 1 Device . | . . . Storage 2 | 1 1 . Processor . | . . . Hackware . | . . . Protection 2 | . 1 1 Artifact . | . . . Weapon 5 | 3 . 2 Energy Gun 2 | 2 . . Energy Cannon . | . . . Ballistic Gun 1 | 1 . . Ballistic Cannon 2 | . . 2 Launcher . | . . . Special Weapon . | . . . Impact Weapon . | . . . Slashing Weapon . | . . . Piercing Weapon . | . . . Special Melee Weapon . | . . . Unidentified Prototypes . | . . . Parts Lost 6 | . 2 4 Power 2 | . 1 1 Propulsion 2 | . . 2 Utility 1 | . 1 . Weapon 1 | . . 1 Highest Loss Streak 3 | . 1 3 To Critical Strikes . | . . . Average Slot Usage (%) 94 | . 95 93 Engine 14 | . 14 14 Treads 27 | . 28 27 Storage 14 | . 14 14 Protection 9 | . 9 8 Energy Gun 12 | . 14 5 Ballistic Gun 11 | . 14 . Ballistic Cannon 3 | . . 21 Naked Turns . | . . . Heaviest Build 34 | 13 29 34 Greatest Support 40 | 40 40 40 Greatest Overweight (x) . | . . . Average Overweight (x) . | . . . Largest Inventory Capacity 15 | 8 15 15 Average Capacity 14 | 6 14 15 Most Carried 15 | 4 15 15 Average Carried 11 | 1 12 12 Final Capacity 15 | 8 15 15 Final Carried 15 | 3 15 10 Class Distribution -------------------- 100% | Mutant Dominant Class ---------------- Mutant | -10/Materials Mutant | -10/Subcaves Resources | -11 -10 -10 ----------- Run | Jun Mat Sub Matter Collected 652 | 191 368 93 Remotely . | . . . Salvage Created 784 | . 735 49 Parts 47 | . 45 2 Haulers Intercepted 2 | . 2 . Recyclers Shooed . | . . . Parts Field Recycled . | . . . Retrieved Matter . | . . . Parts Self-Destructed . | . . . Prevented . | . . . Kills | -11 -10 -10 ------- Run | Jun Mat Sub Combat Hostiles Destroyed 16 | . 13 3 Guns 13 | . 13 . Cannons 3 | . . 3 Classes Destroyed 5 | . 4 1 Worker 1 | . 1 . Hauler 2 | . 2 . Watcher 2 | . 2 . Grunt 13 | . 13 . Subdweller 3 | . . 3 Best Kill Streak 3 | . 3 2 Combat Bots Only 3 | . 3 2 Max Kills in Single Turn 1 | . 1 1 Gunslinging . | . . . Exploded . | . . . Melee . | . . . Uniques/NPCs Destroyed . | . . . Combat | -11 -10 -10 -------- Run | Jun Mat Sub Damage Taken 1088 | . 470 618 Core 256 | . 61 195 Absorbed by Shields . | . . . Redirected to Shielding 50 | . 50 . Core Remaining (%) 100 | 100 . . Volleys Fired 81 | 2 61 18 Largest 2 | 2 2 2 Hottest 89 | 70 70 89 Shots Fired 161 | 4 121 36 Gun 130 | 4 121 5 Cannon 31 | . . 31 Launcher . | . . . Special . | . . . Kinetic 94 | 2 61 31 Thermal 67 | 2 60 5 Explosive . | . . . Electromagnetic . | . . . Robot Hit Streak 17 | 2 11 17 Robot Miss Streak 4 | 1 4 1 Penetration Max . | . . . Secondary Targets 1 | . 1 . Max Gunslinging Chain 1 | . 1 . Shots Hit Robots 113 | 3 81 29 Core Hits 49 | . 42 7 Critical Kills . | . . . Critical Parts Destroyed . | . . . Critical Strikes 6 | . 4 2 Burn 5 | . 4 1 Blast 1 | . . 1 Melee Attacks . | . . . Impact . | . . . Slashing . | . . . Piercing . | . . . Sneak Attacks . | . . . Combat Hostiles . | . . . Follow-up Attacks . | . . . Damage Inflicted 1422 | 27 837 558 Guns 886 | 27 834 25 Cannons 533 | . . 533 Explosions . | . . . Melee . | . . . Ramming 3 | . 3 . Kinetic 895 | 14 348 533 Thermal 524 | 13 486 25 Explosive . | . . . Electromagnetic . | . . . Impact . | . . . Slashing . | . . . Piercing . | . . . Highest Corruption . | . . . Average Corruption . | . . . Corruption Purged . | . . . Corruption Blocked . | . . . Overload Shots . | . . . Overflow Damage . | . . . Projectiles . | . . . Explosions . | . . . Melee . | . . . Knockbacks 9 | . . 9 Impact . | . . . Kinetic 8 | . . 8 Secondary 1 | . . 1 Self-Inflicted Damage . | . . . Shots . | . . . Rammed 2 | . 2 . Targets Rammed 2 | . 2 . Kicked . | . . . Crushed . | . . . Highest Temperature 268 | 30 268 . Average Temperature 60 | 18 62 . Received Heat Transfer 315 | . 261 54 Siege Activations . | . . . Robots Corrupted . | . . . Combat Hostiles . | . . . Parts Fried . | . . . Impact Corruptions . | . . . Robots Melted . | . . . Combat Hostiles . | . . . Parts Melted 1 | . 1 . Heat Transferred 1887 | 37 1702 148 Parts Sabotaged . | . . . Parts Stolen . | . . . Parts Stripped . | . . . Power Chain Reactions . | . . . Missiles Intercepted . | . . . Alert | -11 -10 -10 ------- Run | Jun Mat Sub Peak Influence 148 | . 148 . Initial . | . . . Average 73 | . 77 . Maximum Alert Level . | . . . Low Security (%) 100 | 100 100 . Level 1 . | . . . Level 2 . | . . . Level 3 . | . . . Level 4 . | . . . Level 5 . | . . . High Security . | . . . Max Security . | . . . Squads Dispatched 5 | . 5 . Investigation 3 | . 3 . Extermination . | . . . Reinforcement 2 | . 2 . Assault . | . . . Garrison . | . . . Intercept . | . . . Searches Triggered . | . . . Construction Impeded . | . . . Haulers Reinforced . | . . . Active Scanning Responses . | . . . Cargo Convoy Interrupts . | . . . Stealth | -11 -10 -10 --------- Run | Jun Mat Sub Distress Signals 1 | . 1 . Communications Jammed . | . . . Distress Signals . | . . . Times Spotted 35 | . 30 5 Peak Tracking Total 3 | . 3 2 Tactical Retreats 2 | . 2 . Traps | -11 -10 -10 ------- Run | Jun Mat Sub Traps Triggered 3 | . 3 . Indirectly . | . . . Trap Hack Attempts . | . . . Triggered . | . . . Disarmed . | . . . Reprogrammed . | . . . Reused . | . . . Traps Extracted . | . . . Installed . | . . . Triggered . | . . . Machines | -11 -10 -10 ---------- Run | Jun Mat Sub Machines Disabled . | . . . Max in Single Turn . | . . . Machines Repaired . | . . . Machines Sabotaged . | . . . Overloaded Fab Kills . | . . . Hacking | -11 -10 -10 --------- Run | Jun Mat Sub Machines Accessed 3 | . 3 . Terminals 3 | . 3 . Fabricators . | . . . Repair Stations . | . . . Recycling Units . | . . . Scanalyzers . | . . . Garrison Access . | . . . Total Hacks 8 | . 8 . Successful 3 | . 3 . Failed 5 | . 5 . Catastrophic 1 | . 1 . Database Lockouts . | . . . Manual 6 | . 6 . Terminals 8 | . 8 . Fabricators . | . . . Repair Stations . | . . . Recycling Units . | . . . Scanalyzers . | . . . Garrison Access . | . . . Terminal Hacks 3 | . 3 . Robot Analysis 3 | . 3 . Fabricator Hacks . | . . . Repair Station Hacks . | . . . Recycling Unit Hacks . | . . . Scanalyzer . | . . . Garrison Access Hacks . | . . . Unauthorized Hacks . | . . . Terminals . | . . . Fabricators . | . . . Repair Stations . | . . . Recycling Units . | . . . Scanalyzers . | . . . Garrison Access . | . . . Data Cores Recovered . | . . . Used . | . . . Hacking Detections 2 | . 2 . Full Trace Events . | . . . Feedback Events . | . . . Feedback Blocked . | . . . Robot Schematics Acquired . | . . . Robots Built . | . . . Authchips . | . . . Time . | . . . Total Robot Build Rating . | . . . Part Schematics Acquired . | . . . Parts Built . | . . . Authchips . | . . . Time . | . . . Total Part Build Rating . | . . . Parts Repaired . | . . . Time . | . . . Parts Recycled . | . . . Recycled Matter . | . . . Retrieved Matter . | . . . Retrieved Components . | . . . Parts Scanalyzed . | . . . Part Schematics Acquired . | . . . Parts Damaged . | . . . Bothacking | -11 -10 -10 ------------ Run | Jun Mat Sub Used RIF Installer . | . . . Robots Hacked . | . . . Non-combat . | . . . Combat . | . . . Robot Hacks Applied . | . . . Relay Couplers Released . | . . . Fabnet Peak Effective % . | . . . Robots Rewired . | . . . Allies Hacked . | . . . Hacks Repelled . | . . . Allies | -11 -10 -10 -------- Run | Jun Mat Sub Total Allies . | . . . Largest Group . | . . . Highest-Rated Group . | . . . Highest-Rated Ally . | . . . Total Orders . | . . . Ally Attacks . | . . . Total Damage . | . . . Kills . | . . . Allies Corrupted . | . . . Allies Melted . | . . . Intel | -11 -10 -10 ------- Run | Jun Mat Sub Robot Analysis Total 3 | . 3 . Derelict Logs Recovered 1 | . . 1 Drone Launches . | . . . Drone Recoveries . | . . . Exploration | -11 -10 -10 ------------- Run | Jun Mat Sub Turns Passed 1958 | 78 1583 297 Spaces Moved 1040 | 44 848 148 Core 12 | 12 . . Treads 1028 | 32 848 148 Legs . | . . . Wheels . | . . . Hover . | . . . Flight . | . . . Fastest Speed 50 | 50 160 160 Average Speed 158 | 130 160 160 Slowest Speed 160 | 160 160 160 Overloaded Moves . | . . . Propulsion Burnouts . | . . . Robots Hopped . | . . . Cave-ins Triggered . | . . . Exploration Rate (%) 37 | 3 98 12 Regions Visited 2 Branch Regions 1 Pre-discovered Areas . | . . . Known Exits Taken . | . . . Unknown Exits Taken 2 | 1 1 . Scrap Searched 1 | . . 1 Spaces Dug . | . . . Terrain Destroyed . | . . . Melee . | . . . Projectile . | . . . AOE . | . . . Terrain Rammed . | . . . Walls Destroyed . | . . . Machines Disabled . | . . . Actions | -11 -10 -10 --------- Run | Jun Mat Sub Total 1199 | 61 965 173 Wait 36 | . 36 . Move 1038 | 43 847 148 Hop . | . . . Pick Up 24 | 9 15 . Fast Attach 1 | . . 1 Attach 14 | 6 3 5 Detach . | . . . Swap 1 | 1 . . Drop 2 | . 1 1 Fire 81 | 2 61 18 Melee . | . . . Ram . | . . . Kick . | . . . Crush 2 | . 2 . Escape Stasis . | . . . Rewire . | . . . Trap . | . . . Miscellaneous . | . . . Route ------- -11/Junkyard -10/Materials (discovered 5 exits: [*Mat x3] / [*Min] / [*Sub]) -10/Subcaves History --------- Turn | Location | Event 4 | -11/Junkyard | Discovered new exit (range 15) 79 | -11/Junkyard | Entered Materials 252 | -10/Materials | Discovered new exit (range 8) 315 | -10/Materials | Build established: Mutant 391 | -10/Materials | Discovered new exit (range 7) 745 | -10/Materials | Discovered new exit (range 13) 871 | -10/Materials | Discovered new exit (range 8) 1649 | -10/Materials | Discovered new exit (range 8) 1662 | -10/Materials | Entered Subcaves 1662 | -10/Subcaves | Learned 8 Materials zone layouts 1787 | -10/Subcaves | Core integrity fell below 50% 1837 | -10/Subcaves | Lost 3 parts (2n1w) 1862 | -10/Subcaves | A swath of the cavern ceiling suddenly collapsed 1955 | -10/Subcaves | Core integrity fell below 20% 1959 | -10/Subcaves | Destroyed by 8C-00P(R) with Subdweller Machine Gun Last Messages --------------- 01740_ Acquired 25 matter. 01782_ Med. Laser destroyed. 01783_ ZR-1H4(R) knocked back. 01785_ Lgt. Treads destroyed. 01788_ PO-22D(R) knocked back. 01794_ PO-22D(R) destroyed. 01797_ ZR-1H4(R) knocked back. 01806_ Lgt. Treads destroyed. 01809_ ZR-1H4(R) destroyed. 01814_ Acquired 2 matter. 01816_ Acquired 3 matter. 01822_ Acquired 4 matter. 01827_ Acquired 11 matter. 01829_ Acquired 10 matter. 01832_ Acquired 23 matter. 01835_ Acquired 1 matter. A swath of the cavern ceiling suddenly collapses. 01947_ 8C-00P(R) knocked back. 01950_ Ion Engine destroyed. 01954_ 4E-JZG(R) knocked back. Map ----- +----------------------------------------------------+ | ?????????????????????????????????????????????? | | ??######?????????????????????????????????????? | | ?## ###???????????????????????????????????? | | ## #???????????????????????????????????? | | #???????????????????????????????????? | | #????????????????????????????????????? | | #????????????????????????????????????? | | ### ##????????????????????????????????????? | | #######????????#???????????????????????????? | | ## # ##?????? ?#??????????????????????????? | | #????? ? ???????????????????????????? | | ## #????"# ????????????????????????????? | | ## "# #???#""?????????????????????????????? | | # "#" #??#""??????????????????????????????? | | """ ###"# #?????????????????????????????? | | "" "#"# #?????????????????????????????? | | ### "#""#####????????????????????????????? | | ## #?## "##"#"" #?????????????????????????? | | ####??##"#"#"## ??????????????????????????? | | ???????##""##"### ???????????#??????????????? | | ????????###"""# "##??????????%#??????????????? | | ??????????##""##""#?###????? R#??????????????? | | ???????????#"""##"#?# ##??? R#??????????????? | | ???????????##"""""###; ##?# #??????????????? | | ????????????##"#;;##;;; ## #??????????????? | | ??? " ""#"#;;;;;;; @ #??????????????? | | ???# ;;;;;;;;#; ##??????????????? | | #???# #### """""##### #####???????????????? | | ???????????# ##" ??####???????????????????? | | ??????????# ?# #????????????????????????? | | ??????????## ? #????????????????????????? | | ??????????? #?#### ????????????????????????? | | ??????????## ?????? ???????????????????????? | | ???????????# ???????# ??????????????????????? | | ???????????# ???????? ?????????????????????? | | ???????????# ?????????? ????????????????????? | | ??????????? ??????????? ???????????????????? | | ??????????? ??????????? ????????????????????? | | ??????????? ????????????????????????????????? | | ??????????? ?????????????????????????????????? | | ?????????????????????????????????????????????? | | ?????????????????????????????????????????????? | | ?????????????????????????????????????????????? | | ?????????????????????????????????????????????? | | ?????????????????????????????????????????????? | | ?????????????????????????????????????????????? | | ?????????????????????????????????????????????? | | ?????????????????????????????????????????????? | | ?????????????????????????????????????????????? | | ?????????????????????????????????????????????? | +----------------------------------------------------+ Best States ------------- Heat Dissipation 25 Energy Generation 10 Energy Capacity 250 Matter Stores 300 Matter Capacity 300 Sight Range 16 Terrain Scan Density 10 Armor Coverage 150 Propulsion Shielding 33 Evasion (%) 50 Recoil Reduction 2 Item Schematics ----------------- None Robot Schematics ------------------ None Fabricated ------------ Nothing Alien Tech Used ----------------- None Achievements -------------- None Challenges ------------ None Game ------ Seed FlyingCryofiberFrame Manual? 0 Play Time 00:08:56 Cumulative 122.6 hours Start 2023.12.16 @ 12:23:09 End 2023.12.16 @ 12:38:28 Sessions 1 Manual Loads 0 Difficulty Rogue Special Mode None Game No. 134 Rogue 98 Adventurer 36 Explorer 0 Win Type - Total 7 Types 2/0/5/0/0/0/0/0/0 Lore% 54 Gallery% 76 Achievement% 62 Wizard Run 0 Options --------- ASCII 0 Keyboard 0 Movement Mouse Keybinds 0 Fullscreen 1 Font 18/SmallcapsGlow Map View 76x50 Tactical HUD 1 Map Filters NONE Filters NONE Steam 1 RUN: 043afa3e-46ad-47ae-b3f5-b3c6850ac5dc